[Event "Titled Tuesday Blitz October 31 Late 2023"]
[White "ArmanGhevondyanchess"]
[Black "Rastbod, Ali"]
[BlackFideId "12567477"]
[WhiteElo "2541"]
[BlackElo "2749"]
[Result "0-1"]
[Round "2"]
[TimeControl "180+1"]
[Date "2023.10.31"]
[WhiteClock "0:00:08"]
[BlackClock "0:00:05"]
[Board "48"]

1. Nf3 {[%clk 0:03:00]}  d5 {[%clk 0:02:57]} 2. g3 {[%clk 0:03:00]}  c5 {[%clk 0:02:55]} 3. Bg2 {[%clk 0:03:01]}  Nc6 {[%clk 0:02:56]} 4. d4 {[%clk 0:03:01]}  cxd4 {[%clk 0:02:56]} 5. Nxd4 {[%clk 0:03:02]}  e5 {[%clk 0:02:56]} 6. Nxc6 {[%clk 0:03:02]}  bxc6 {[%clk 0:02:57]} 7. O-O {[%clk 0:03:03]}  Nf6 {[%clk 0:02:57]} 8. c4 {[%clk 0:03:03]}  Be6 {[%clk 0:02:57]} 9. cxd5 {[%clk 0:03:04]}  cxd5 {[%clk 0:02:57]} 10. Nc3 {[%clk 0:03:04]}  d4 {[%clk 0:02:57]} 11. Bxa8 {[%clk 0:02:59]}  Qxa8 {[%clk 0:02:57]} 12. Na4 {[%clk 0:02:59]}  Bh3 {[%clk 0:02:54]} 13. f3 {[%clk 0:02:59]}  Bxf1 {[%clk 0:02:55]} 14. Kxf1 {[%clk 0:03:00]}  h6 {[%clk 0:02:44]} 15. Bd2 {[%clk 0:02:58]}  Bd6 {[%clk 0:02:37]} 16. Rc1 {[%clk 0:02:55]}  O-O {[%clk 0:02:29]} 17. Nc5 {[%clk 0:02:53]}  Qd5 {[%clk 0:02:25]} 18. Qb3 {[%clk 0:02:46]}  Rb8 {[%clk 0:01:47]} 19. Qxd5 {[%clk 0:02:40]}  Nxd5 {[%clk 0:01:47]} 20. b3 {[%clk 0:02:34]}  f5 {[%clk 0:01:45]} 21. Na4 {[%clk 0:02:15]}  Kf7 {[%clk 0:01:27]} 22. Rc6 {[%clk 0:02:00]}  Ke7 {[%clk 0:01:23]} 23. Ra6 {[%clk 0:01:54]}  Rb7 {[%clk 0:01:22]} 24. Nb2 {[%clk 0:01:45]}  Nc7 {[%clk 0:01:17]} 25. Ra5 {[%clk 0:01:39]}  Nb5 {[%clk 0:01:15]} 26. Nc4 {[%clk 0:01:36]}  Bc7 {[%clk 0:01:13]} 27. Ra6 {[%clk 0:01:33]}  e4 {[%clk 0:01:07]} 28. Bb4+ {[%clk 0:01:24]}  Kf7 {[%clk 0:00:55]} 29. Bc5 {[%clk 0:01:06]}  Bb8 {[%clk 0:00:14]} 30. a4 {[%clk 0:00:43]}  Nc7 {[%clk 0:00:14]} 31. Rc6 {[%clk 0:00:38]}  Ne6 {[%clk 0:00:11]} 32. fxe4 {[%clk 0:00:17]}  fxe4 {[%clk 0:00:10]} 33. b4 {[%clk 0:00:18]}  Nxc5 {[%clk 0:00:10]} 34. bxc5 {[%clk 0:00:19]}  Rb1+ {[%clk 0:00:06]} 35. Kf2 {[%clk 0:00:17]}  Rc1 {[%clk 0:00:06]} 36. Nd6+ {[%clk 0:00:14]}  Bxd6 {[%clk 0:00:06]} 37. Rxd6 {[%clk 0:00:15]}  e3+ {[%clk 0:00:02]} 38. Kg2 {[%clk 0:00:13]}  Rxc5 {[%clk 0:00:03]} 39. Rxd4 {[%clk 0:00:13]}  Rc2 {[%clk 0:00:04]} 40. Kf3 {[%clk 0:00:14]}  Ra2 {[%clk 0:00:03]} 41. Kxe3 {[%clk 0:00:14]}  a5 {[%clk 0:00:04]} 42. Rc4 {[%clk 0:00:14]}  g5 {[%clk 0:00:04]} 43. h3 {[%clk 0:00:14]}  Kg6 {[%clk 0:00:04]} 44. Kf3 {[%clk 0:00:14]}  Ra3+ {[%clk 0:00:05]} 45. e3 {[%clk 0:00:15]}  Ra1 {[%clk 0:00:05]} 46. Kg2 {[%clk 0:00:15]}  Ra2+ {[%clk 0:00:05]} 47. Kf3 {[%clk 0:00:15]}  Ra1 {[%clk 0:00:06]} 48. h4 {[%clk 0:00:16]}  gxh4 {[%clk 0:00:06]} 49. Rxh4 {[%clk 0:00:17]}  h5 {[%clk 0:00:06]} 50. Rc4 {[%clk 0:00:17]}  Rf1+ {[%clk 0:00:06]} 51. Kg2 {[%clk 0:00:16]}  Ra1 {[%clk 0:00:06]} 52. Kh3 {[%clk 0:00:15]}  Rh1+ {[%clk 0:00:06]} 53. Kg2 {[%clk 0:00:16]}  Re1 {[%clk 0:00:06]} 54. Kf2 {[%clk 0:00:16]}  Ra1 {[%clk 0:00:06]} 55. Rd4 {[%clk 0:00:17]}  Ra2+ {[%clk 0:00:07]} 56. Kf3 {[%clk 0:00:17]}  Ra1 {[%clk 0:00:07]} 57. g4 {[%clk 0:00:18]}  h4 {[%clk 0:00:06]} 58. g5 {[%clk 0:00:15]}  Kxg5 {[%clk 0:00:05]} 59. Rd5+ {[%clk 0:00:15]}  Kg6 {[%clk 0:00:05]} 60. Rxa5 {[%clk 0:00:15]}  Kh6 {[%clk 0:00:05]} 61. Ra8 {[%clk 0:00:15]}  Kg5 {[%clk 0:00:04]} 62. Ra5+ {[%clk 0:00:14]}  Kg6 {[%clk 0:00:04]} 63. Kg4 {[%clk 0:00:15]}  Ra3 {[%clk 0:00:04]} 64. Ra6+ {[%clk 0:00:13]}  Kf7 {[%clk 0:00:04]} 65. e4 {[%clk 0:00:12]}  h3 {[%clk 0:00:03]} 66. Rh6 {[%clk 0:00:09]}  Rxa4 {[%clk 0:00:04]} 67. Kf5 {[%clk 0:00:08]}  Ra3 {[%clk 0:00:03]} 68. Rh7+ {[%clk 0:00:06]}  Kg8 {[%clk 0:00:03]} 69. Rh4 {[%clk 0:00:07]}  Kg7 {[%clk 0:00:03]} 70. e5 {[%clk 0:00:07]}  Rf3+ {[%clk 0:00:03]} 71. Ke6 {[%clk 0:00:08]}  Kg6 {[%clk 0:00:02]} 72. Rg4+ {[%clk 0:00:07]}  Kh5 {[%clk 0:00:03]} 73. Rg8 {[%clk 0:00:07]}  Kh4 {[%clk 0:00:03]} 74. Ke7 {[%clk 0:00:08]}  h2 {[%clk 0:00:03]} 75. e6 {[%clk 0:00:07]}  Kh3 {[%clk 0:00:03]} 76. Rh8+ {[%clk 0:00:08]}  Kg2 {[%clk 0:00:04]} 77. Rg8+ {[%clk 0:00:08]}  Rg3 {[%clk 0:00:04]} 78. Rh8 {[%clk 0:00:08]}  Rh3 {[%clk 0:00:04]} 79. Rg8+ {[%clk 0:00:09]}  Kf3 {[%clk 0:00:04]} 80. Rf8+ {[%clk 0:00:09]}  Ke2 {[%clk 0:00:04]} 81. Ra8 {[%clk 0:00:08]}  h1=Q {[%clk 0:00:04]} 82. Ra2+ {[%clk 0:00:09]}  Kd3 {[%clk 0:00:05]} 83. Ra3+ {[%clk 0:00:09]}  Kc4 {[%clk 0:00:05]} 84. Ra1 {[%clk 0:00:08]}  Qxa1 {[%clk 0:00:05]} 0-1


[Site "https://www.chess.com"]

[Event "Titled Tuesday Blitz October 31 Late 2023"]
[White "Schmakel, Sam"]
[Black "Osmak, Yuliia"]
[WhiteFideId "2039311"]
[BlackFideId "14101602"]
[WhiteElo "2749"]
[BlackElo "2537"]
[Result "1-0"]
[Round "2"]
[TimeControl "180+1"]
[Date "2023.10.31"]
[WhiteClock "0:00:24"]
[BlackClock "0:00:12"]
[Board "49"]

1. d4 {[%clk 0:03:00]}  Nf6 {[%clk 0:02:59]} 2. Bf4 {[%clk 0:03:00]}  d5 {[%clk 0:02:55]} 3. Nc3 {[%clk 0:03:00]}  a6 {[%clk 0:02:41]} 4. e3 {[%clk 0:02:57]}  c5 {[%clk 0:02:37]} 5. Nf3 {[%clk 0:02:57]}  cxd4 {[%clk 0:02:36]} 6. exd4 {[%clk 0:02:48]}  Bg4 {[%clk 0:02:28]} 7. h3 {[%clk 0:02:39]}  Bxf3 {[%clk 0:02:28]} 8. Qxf3 {[%clk 0:02:40]}  Nc6 {[%clk 0:02:27]} 9. O-O-O {[%clk 0:02:38]}  e6 {[%clk 0:02:27]} 10. g4 {[%clk 0:02:36]}  Bd6 {[%clk 0:02:23]} 11. g5 {[%clk 0:02:26]}  Bxf4+ {[%clk 0:02:22]} 12. Qxf4 {[%clk 0:02:27]}  Nd7 {[%clk 0:02:20]} 13. h4 {[%clk 0:02:23]}  b5 {[%clk 0:02:01]} 14. h5 {[%clk 0:02:17]}  Qb8 {[%clk 0:01:59]} 15. Qg4 {[%clk 0:02:09]}  Qd6 {[%clk 0:01:47]} 16. f4 {[%clk 0:02:01]}  b4 {[%clk 0:01:41]} 17. Na4 {[%clk 0:01:54]}  Ne7 {[%clk 0:01:29]} 18. Bd3 {[%clk 0:01:51]}  Nb6 {[%clk 0:01:19]} 19. Nxb6 {[%clk 0:01:16]}  Qxb6 {[%clk 0:01:20]} 20. g6 {[%clk 0:01:16]}  f5 {[%clk 0:01:06]} 21. Qe2 {[%clk 0:01:10]}  hxg6 {[%clk 0:00:57]} 22. hxg6 {[%clk 0:01:08]}  Rxh1 {[%clk 0:00:57]} 23. Rxh1 {[%clk 0:01:09]}  Nxg6 {[%clk 0:00:54]} 24. Qh5 {[%clk 0:01:04]}  O-O-O {[%clk 0:00:24]} 25. Qxg6 {[%clk 0:01:04]}  Qxd4 {[%clk 0:00:24]} 26. Qxe6+ {[%clk 0:01:04]}  Kb8 {[%clk 0:00:24]} 27. Qxf5 {[%clk 0:00:47]}  g6 {[%clk 0:00:22]} 28. Qe5+ {[%clk 0:00:43]}  Qxe5 {[%clk 0:00:22]} 29. fxe5 {[%clk 0:00:44]}  Re8 {[%clk 0:00:22]} 30. Re1 {[%clk 0:00:44]}  g5 {[%clk 0:00:22]} 31. Bxa6 {[%clk 0:00:43]}  g4 {[%clk 0:00:21]} 32. Bb5 {[%clk 0:00:41]}  Re7 {[%clk 0:00:21]} 33. e6 {[%clk 0:00:30]}  Kc7 {[%clk 0:00:20]} 34. Rg1 {[%clk 0:00:29]}  Rxe6 {[%clk 0:00:18]} 35. Rxg4 {[%clk 0:00:29]}  Kb6 {[%clk 0:00:17]} 36. Rxb4 {[%clk 0:00:29]}  Kc5 {[%clk 0:00:17]} 37. Rb3 {[%clk 0:00:29]}  Re1+ {[%clk 0:00:16]} 38. Kd2 {[%clk 0:00:29]}  Ra1 {[%clk 0:00:16]} 39. a4 {[%clk 0:00:26]}  d4 {[%clk 0:00:16]} 40. Ra3 {[%clk 0:00:25]}  Rh1 {[%clk 0:00:12]} 41. Be2 {[%clk 0:00:24]} 1-0


[Site "https://www.chess.com"]

[Event "Titled Tuesday Blitz October 31 Late 2023"]
[White "Korchmar, Vasiliy"]
[Black "TimGrutter03"]
[WhiteFideId "24131750"]
[WhiteElo "2735"]
[BlackElo "2528"]
[Result "1-0"]
[Round "2"]
[TimeControl "180+1"]
[Date "2023.10.31"]
[WhiteClock "0:00:04"]
[BlackClock "0:00:01"]
[Board "55"]

1. e4 {[%clk 0:03:00]}  e5 {[%clk 0:02:59]} 2. Nf3 {[%clk 0:03:01]}  Nc6 {[%clk 0:02:59]} 3. Nc3 {[%clk 0:03:01]}  Bb4 {[%clk 0:02:55]} 4. Bb5 {[%clk 0:02:43]}  Nge7 {[%clk 0:02:52]} 5. O-O {[%clk 0:02:42]}  O-O {[%clk 0:02:51]} 6. d4 {[%clk 0:02:41]}  exd4 {[%clk 0:02:51]} 7. Nxd4 {[%clk 0:02:41]}  a6 {[%clk 0:02:48]} 8. Bc4 {[%clk 0:02:39]}  Bxc3 {[%clk 0:02:44]} 9. bxc3 {[%clk 0:02:38]}  d5 {[%clk 0:02:44]} 10. exd5 {[%clk 0:02:34]}  Nxd5 {[%clk 0:02:45]} 11. Nxc6 {[%clk 0:02:32]}  bxc6 {[%clk 0:02:46]} 12. Qf3 {[%clk 0:02:25]}  Be6 {[%clk 0:02:40]} 13. Bd3 {[%clk 0:02:21]}  Qh4 {[%clk 0:02:29]} 14. Re1 {[%clk 0:02:17]}  Rfe8 {[%clk 0:02:20]} 15. Re4 {[%clk 0:02:15]}  Qf6 {[%clk 0:02:11]} 16. Qxf6 {[%clk 0:02:05]}  Nxf6 {[%clk 0:02:12]} 17. Ra4 {[%clk 0:02:00]}  a5 {[%clk 0:01:55]} 18. Be3 {[%clk 0:02:00]}  Nd5 {[%clk 0:01:46]} 19. Bd4 {[%clk 0:01:59]}  Nb6 {[%clk 0:01:46]} 20. Ra3 {[%clk 0:01:55]}  Nc4 {[%clk 0:01:46]} 21. Rb3 {[%clk 0:01:51]}  Bd5 {[%clk 0:01:40]} 22. Rb7 {[%clk 0:01:39]}  Re7 {[%clk 0:01:09]} 23. Bc5 {[%clk 0:01:30]}  Rd7 {[%clk 0:01:09]} 24. Re1 {[%clk 0:01:24]}  g6 {[%clk 0:00:56]} 25. h4 {[%clk 0:01:22]}  a4 {[%clk 0:00:45]} 26. a3 {[%clk 0:01:18]}  Na5 {[%clk 0:00:38]} 27. Rb4 {[%clk 0:01:14]}  Be6 {[%clk 0:00:38]} 28. Rxa4 {[%clk 0:01:13]}  Rdd8 {[%clk 0:00:38]} 29. Be7 {[%clk 0:01:06]}  Re8 {[%clk 0:00:32]} 30. Bf6 {[%clk 0:01:05]}  Nb7 {[%clk 0:00:29]} 31. Rxa8 {[%clk 0:00:49]}  Rxa8 {[%clk 0:00:30]} 32. Ra1 {[%clk 0:00:22]}  Nc5 {[%clk 0:00:29]} 33. Be2 {[%clk 0:00:19]}  Nd7 {[%clk 0:00:29]} 34. Bd4 {[%clk 0:00:17]}  c5 {[%clk 0:00:29]} 35. Be3 {[%clk 0:00:18]}  Ra5 {[%clk 0:00:26]} 36. a4 {[%clk 0:00:13]}  Nb6 {[%clk 0:00:26]} 37. Bb5 {[%clk 0:00:13]}  Bc4 {[%clk 0:00:21]} 38. Bc6 {[%clk 0:00:12]}  Be6 {[%clk 0:00:13]} 39. Bh6 {[%clk 0:00:08]}  f5 {[%clk 0:00:06]} 40. Rd1 {[%clk 0:00:07]}  Kf7 {[%clk 0:00:06]} 41. Rd8 {[%clk 0:00:07]}  Nxa4 {[%clk 0:00:06]} 42. Rh8 {[%clk 0:00:04]}  Nxc3 {[%clk 0:00:03]} 43. Rxh7+ {[%clk 0:00:04]}  Kg8 {[%clk 0:00:02]} 44. Rg7+ {[%clk 0:00:04]}  Kh8 {[%clk 0:00:03]} 45. Rxg6 {[%clk 0:00:04]}  Bd5 {[%clk 0:00:03]} 46. Bxd5 {[%clk 0:00:03]}  Nxd5 {[%clk 0:00:03]} 47. Re6 {[%clk 0:00:02]}  Kh7 {[%clk 0:00:03]} 48. Bg5 {[%clk 0:00:02]}  Nb4 {[%clk 0:00:03]} 49. Re7+ {[%clk 0:00:02]}  Kg6 {[%clk 0:00:02]} 50. Rxc7 {[%clk 0:00:03]}  Nxc2 {[%clk 0:00:02]} 51. Kh2 {[%clk 0:00:03]}  Nd4 {[%clk 0:00:02]} 52. Kg3 {[%clk 0:00:03]}  Kh5 {[%clk 0:00:02]} 53. Rh7+ {[%clk 0:00:03]}  Kg6 {[%clk 0:00:02]} 54. Rh6+ {[%clk 0:00:03]}  Kg7 {[%clk 0:00:03]} 55. Rd6 {[%clk 0:00:03]}  Ne2+ {[%clk 0:00:03]} 56. Kf3 {[%clk 0:00:03]}  Nd4+ {[%clk 0:00:03]} 57. Kf4 {[%clk 0:00:03]}  Ra4 {[%clk 0:00:03]} 58. Bf6+ {[%clk 0:00:03]}  Kf7 {[%clk 0:00:04]} 59. Bxd4 {[%clk 0:00:03]}  cxd4 {[%clk 0:00:05]} 60. Kxf5 {[%clk 0:00:03]}  Ra2 {[%clk 0:00:05]} 61. g4 {[%clk 0:00:03]}  Rxf2+ {[%clk 0:00:05]} 62. Kg5 {[%clk 0:00:03]}  Rd2 {[%clk 0:00:05]} 63. h5 {[%clk 0:00:04]}  d3 {[%clk 0:00:06]} 64. h6 {[%clk 0:00:04]}  Rd1 {[%clk 0:00:06]} 65. Rd7+ {[%clk 0:00:04]}  Ke6 {[%clk 0:00:06]} 66. h7 {[%clk 0:00:04]}  Rh1 {[%clk 0:00:06]} 67. Rxd3 {[%clk 0:00:03]}  Rxh7 {[%clk 0:00:06]} 68. Kg6 {[%clk 0:00:04]}  Rh8 {[%clk 0:00:06]} 69. Re3+ {[%clk 0:00:04]}  Kd7 {[%clk 0:00:06]} 70. g5 {[%clk 0:00:05]}  Rg8+ {[%clk 0:00:07]} 71. Kh6 {[%clk 0:00:05]}  Kd6 {[%clk 0:00:05]} 72. g6 {[%clk 0:00:05]}  Rh8+ {[%clk 0:00:05]} 73. Kg7 {[%clk 0:00:05]}  Rh1 {[%clk 0:00:06]} 74. Kf7 {[%clk 0:00:05]}  Rf1+ {[%clk 0:00:07]} 75. Kg8 {[%clk 0:00:06]}  Kd7 {[%clk 0:00:07]} 76. g7 {[%clk 0:00:06]}  Rf4 {[%clk 0:00:04]} 77. Re5 {[%clk 0:00:04]}  Rh4 {[%clk 0:00:01]} 78. Kf7 {[%clk 0:00:03]}  Rf4+ {[%clk 0:00:01]} 79. Kg6 {[%clk 0:00:03]}  Rg4+ {[%clk 0:00:01]} 80. Rg5 {[%clk 0:00:04]}  Rxg5+ {[%clk 0:00:01]} 81. Kxg5 {[%clk 0:00:04]} 1-0


[Site "https://www.chess.com"]

[Event "Titled Tuesday Blitz October 31 Late 2023"]
[White "Girsh, Daniel"]
[Black "Darini, Pouria"]
[WhiteFideId "30949190"]
[BlackFideId "12502200"]
[WhiteElo "2517"]
[BlackElo "2732"]
[Result "0-1"]
[Round "2"]
[TimeControl "180+1"]
[Date "2023.10.31"]
[WhiteClock "0:00:03"]
[BlackClock "0:00:08"]
[Board "56"]

1. d4 {[%clk 0:03:00]}  Nf6 {[%clk 0:02:59]} 2. c4 {[%clk 0:03:00]}  g6 {[%clk 0:02:57]} 3. Nc3 {[%clk 0:02:59]}  d5 {[%clk 0:02:57]} 4. cxd5 {[%clk 0:02:59]}  Nxd5 {[%clk 0:02:57]} 5. Bd2 {[%clk 0:02:59]}  Bg7 {[%clk 0:02:56]} 6. e4 {[%clk 0:02:57]}  Nxc3 {[%clk 0:02:57]} 7. Bxc3 {[%clk 0:02:57]}  O-O {[%clk 0:02:58]} 8. Nf3 {[%clk 0:02:45]}  Bg4 {[%clk 0:02:56]} 9. Be2 {[%clk 0:02:43]}  Nc6 {[%clk 0:02:54]} 10. d5 {[%clk 0:02:43]}  Bxf3 {[%clk 0:02:54]} 11. gxf3 {[%clk 0:02:36]}  Ne5 {[%clk 0:02:47]} 12. f4 {[%clk 0:02:28]}  Nd7 {[%clk 0:02:48]} 13. e5 {[%clk 0:02:21]}  f6 {[%clk 0:02:26]} 14. e6 {[%clk 0:01:58]}  Nb6 {[%clk 0:02:27]} 15. Bf3 {[%clk 0:01:51]}  Qd6 {[%clk 0:02:27]} 16. Qd2 {[%clk 0:01:50]}  Rad8 {[%clk 0:01:50]} 17. O-O-O {[%clk 0:01:44]}  Bh6 {[%clk 0:01:50]} 18. Kb1 {[%clk 0:01:28]}  Qxf4 {[%clk 0:01:46]} 19. Qe2 {[%clk 0:01:19]}  Qc4 {[%clk 0:01:25]} 20. Qxc4 {[%clk 0:00:49]}  Nxc4 {[%clk 0:01:25]} 21. h4 {[%clk 0:00:49]}  Bf4 {[%clk 0:01:22]} 22. h5 {[%clk 0:00:48]}  g5 {[%clk 0:01:21]} 23. b3 {[%clk 0:00:41]}  Nd6 {[%clk 0:01:02]} 24. Kc2 {[%clk 0:00:39]}  h6 {[%clk 0:00:58]} 25. Rhg1 {[%clk 0:00:37]}  Be5 {[%clk 0:00:58]} 26. Bb4 {[%clk 0:00:35]}  f5 {[%clk 0:00:55]} 27. Rde1 {[%clk 0:00:31]}  Bd4 {[%clk 0:00:55]} 28. Re2 {[%clk 0:00:26]}  Kg7 {[%clk 0:00:53]} 29. Kd3 {[%clk 0:00:26]}  Bf6 {[%clk 0:00:52]} 30. Rc1 {[%clk 0:00:25]}  Rc8 {[%clk 0:00:48]} 31. Rec2 {[%clk 0:00:24]}  Nb5 {[%clk 0:00:33]} 32. Bh1 {[%clk 0:00:20]}  Rfd8 {[%clk 0:00:24]} 33. a4 {[%clk 0:00:20]}  Nd4 {[%clk 0:00:25]} 34. Rxc7 {[%clk 0:00:18]}  Rxc7 {[%clk 0:00:25]} 35. Rxc7 {[%clk 0:00:18]}  Nxe6 {[%clk 0:00:26]} 36. Rxb7 {[%clk 0:00:18]}  Nf4+ {[%clk 0:00:26]} 37. Kc4 {[%clk 0:00:18]}  a6 {[%clk 0:00:10]} 38. d6 {[%clk 0:00:17]}  Rc8+ {[%clk 0:00:08]} 39. Bc5 {[%clk 0:00:13]}  Ne6 {[%clk 0:00:07]} 40. dxe7 {[%clk 0:00:11]}  Rxc5+ {[%clk 0:00:05]} 41. Kb4 {[%clk 0:00:11]}  Kf7 {[%clk 0:00:04]} 42. Rb6 {[%clk 0:00:06]}  a5+ {[%clk 0:00:04]} 43. Ka3 {[%clk 0:00:05]}  Re5 {[%clk 0:00:05]} 44. Rb7 {[%clk 0:00:04]}  Bxe7+ {[%clk 0:00:06]} 45. Ka2 {[%clk 0:00:01]}  Kf6 {[%clk 0:00:07]} 46. Ka1 {[%clk 0:00:02]}  Re2 {[%clk 0:00:06]} 47. Kb1 {[%clk 0:00:02]}  Re1+ {[%clk 0:00:07]} 48. Kb2 {[%clk 0:00:03]}  Rxh1 {[%clk 0:00:07]} 49. Rb6 {[%clk 0:00:03]}  Rxh5 {[%clk 0:00:07]} 50. Rb5 {[%clk 0:00:04]}  Bb4 {[%clk 0:00:08]} 51. Rxa5 {[%clk 0:00:03]}  Bxa5 {[%clk 0:00:08]} 0-1


[Site "https://www.chess.com"]

[Event "Titled Tuesday Blitz October 31 Late 2023"]
[White "Dudzinski, Pawel"]
[Black "Maximov, Dmitry"]
[WhiteFideId "1117890"]
[BlackFideId "14105659"]
[WhiteElo "2501"]
[BlackElo "2725"]
[Result "0-1"]
[Round "2"]
[TimeControl "180+1"]
[Date "2023.10.31"]
[WhiteClock "0:00:01"]
[BlackClock "0:00:43"]
[Board "58"]

1. e4 {[%clk 0:03:00]}  c5 {[%clk 0:02:59]} 2. c4 {[%clk 0:03:00]}  Nc6 {[%clk 0:02:59]} 3. Nc3 {[%clk 0:03:00]}  g6 {[%clk 0:02:58]} 4. g3 {[%clk 0:03:01]}  Bg7 {[%clk 0:02:58]} 5. Bg2 {[%clk 0:03:01]}  d6 {[%clk 0:02:58]} 6. Rb1 {[%clk 0:02:56]}  h5 {[%clk 0:02:56]} 7. h3 {[%clk 0:02:55]}  e5 {[%clk 0:02:52]} 8. a3 {[%clk 0:02:54]}  Be6 {[%clk 0:02:50]} 9. d3 {[%clk 0:02:51]}  h4 {[%clk 0:02:43]} 10. g4 {[%clk 0:02:51]}  f5 {[%clk 0:02:43]} 11. exf5 {[%clk 0:02:43]}  gxf5 {[%clk 0:02:43]} 12. gxf5 {[%clk 0:02:38]}  Bxf5 {[%clk 0:02:43]} 13. Nd5 {[%clk 0:02:34]}  Qd7 {[%clk 0:02:38]} 14. Bg5 {[%clk 0:02:28]}  Nge7 {[%clk 0:02:22]} 15. Nxe7 {[%clk 0:02:23]}  Nxe7 {[%clk 0:02:22]} 16. Nf3 {[%clk 0:02:19]}  O-O {[%clk 0:02:17]} 17. Nxh4 {[%clk 0:02:13]}  Bh7 {[%clk 0:02:10]} 18. Bxe7 {[%clk 0:01:57]}  Qxe7 {[%clk 0:02:10]} 19. Bd5+ {[%clk 0:01:57]}  Kh8 {[%clk 0:02:08]} 20. Qh5 {[%clk 0:01:58]}  Rf6 {[%clk 0:02:06]} 21. Rg1 {[%clk 0:01:57]}  Rh6 {[%clk 0:02:05]} 22. Nf5 {[%clk 0:00:27]}  Rxh5 {[%clk 0:01:50]} 23. Nxe7 {[%clk 0:00:27]}  Bxd3 {[%clk 0:01:50]} 24. Rd1 {[%clk 0:00:18]}  Bh7 {[%clk 0:01:35]} 25. Bxb7 {[%clk 0:00:18]}  Rb8 {[%clk 0:01:33]} 26. Bf3 {[%clk 0:00:16]}  Rxh3 {[%clk 0:01:28]} 27. Bg4 {[%clk 0:00:16]}  Rh2 {[%clk 0:01:23]} 28. Rd2 {[%clk 0:00:13]}  e4 {[%clk 0:01:19]} 29. Bf5 {[%clk 0:00:09]}  Bxb2 {[%clk 0:01:07]} 30. Ke2 {[%clk 0:00:09]}  Bd4 {[%clk 0:01:03]} 31. Bxh7 {[%clk 0:00:05]}  Rxf2+ {[%clk 0:00:58]} 32. Kd1 {[%clk 0:00:06]}  Rb1+ {[%clk 0:00:50]} 33. Kc2 {[%clk 0:00:05]}  Rb2+ {[%clk 0:00:51]} 34. Kc1 {[%clk 0:00:05]}  Rbxd2 {[%clk 0:00:45]} 35. Ng6+ {[%clk 0:00:01]}  Kxh7 {[%clk 0:00:43]} 0-1


[Site "https://www.chess.com"]

[Event "Titled Tuesday Blitz October 31 Late 2023"]
[White "Santos Flores, Alberto"]
[Black "Gubajdullin, Alexei"]
[WhiteFideId "3601234"]
[BlackFideId "4141202"]
[WhiteElo "2497"]
[BlackElo "2722"]
[Result "1-0"]
[Round "2"]
[TimeControl "180+1"]
[Date "2023.10.31"]
[WhiteClock "0:01:16"]
[BlackClock "0:01:35"]
[Board "59"]

1. e4 {[%clk 0:03:00]}  g6 {[%clk 0:02:58]} 2. d4 {[%clk 0:03:00]}  Bg7 {[%clk 0:02:58]} 3. Nc3 {[%clk 0:03:00]}  d6 {[%clk 0:02:58]} 4. Nf3 {[%clk 0:02:58]}  a6 {[%clk 0:02:57]} 5. Be3 {[%clk 0:02:56]}  b5 {[%clk 0:02:56]} 6. h4 {[%clk 0:02:53]}  h6 {[%clk 0:02:56]} 7. Bd3 {[%clk 0:02:48]}  Nd7 {[%clk 0:02:50]} 8. e5 {[%clk 0:02:21]}  dxe5 {[%clk 0:02:49]} 9. dxe5 {[%clk 0:02:21]}  Nxe5 {[%clk 0:02:48]} 10. Nxe5 {[%clk 0:02:21]}  Bxe5 {[%clk 0:02:47]} 11. Qf3 {[%clk 0:02:22]}  Rb8 {[%clk 0:02:41]} 12. O-O-O {[%clk 0:02:22]}  Bb7 {[%clk 0:02:27]} 13. Bxb5+ {[%clk 0:02:15]}  axb5 {[%clk 0:02:25]} 14. Rxd8+ {[%clk 0:02:16]}  Kxd8 {[%clk 0:02:24]} 15. Qxf7 {[%clk 0:02:14]}  Nf6 {[%clk 0:02:18]} 16. Rd1+ {[%clk 0:02:13]}  Bd6 {[%clk 0:02:18]} 17. Nxb5 {[%clk 0:01:50]}  Bxg2 {[%clk 0:02:17]} 18. Nxd6 {[%clk 0:01:50]}  cxd6 {[%clk 0:02:17]} 19. Qxg6 {[%clk 0:01:41]}  Be4 {[%clk 0:02:09]} 20. Rxd6+ {[%clk 0:01:36]}  exd6 {[%clk 0:02:08]} 21. Qxf6+ {[%clk 0:01:36]}  Kd7 {[%clk 0:02:08]} 22. Qf7+ {[%clk 0:01:29]}  Kd8 {[%clk 0:02:04]} 23. Bxh6 {[%clk 0:01:18]}  Rh7 {[%clk 0:01:44]} 24. Bg5+ {[%clk 0:01:18]}  Kc8 {[%clk 0:01:43]} 25. Qc4+ {[%clk 0:01:18]}  Rc7 {[%clk 0:01:39]} 26. Qxe4 {[%clk 0:01:18]}  Rb5 {[%clk 0:01:35]} 27. Qe8+ {[%clk 0:01:16]} 1-0


[Site "https://www.chess.com"]

[Event "Titled Tuesday Blitz October 31 Late 2023"]
[White "Hamitevici, Vladimir"]
[Black "Su, Dion"]
[WhiteFideId "13902393"]
[BlackFideId "2029731"]
[WhiteElo "2712"]
[BlackElo "2422"]
[Result "1-0"]
[Round "2"]
[TimeControl "180+1"]
[Date "2023.10.31"]
[WhiteClock "0:00:24"]
[BlackClock "0:00:32"]
[Board "64"]

1. a3 {[%clk 0:03:00]}  e6 {[%clk 0:02:58]} 2. Nf3 {[%clk 0:02:59]}  d5 {[%clk 0:02:58]} 3. g3 {[%clk 0:02:59]}  Nf6 {[%clk 0:02:58]} 4. Bg2 {[%clk 0:02:59]}  c5 {[%clk 0:02:59]} 5. c4 {[%clk 0:02:58]}  Nc6 {[%clk 0:02:57]} 6. cxd5 {[%clk 0:02:57]}  exd5 {[%clk 0:02:57]} 7. d4 {[%clk 0:02:57]}  Be7 {[%clk 0:02:41]} 8. O-O {[%clk 0:02:54]}  O-O {[%clk 0:02:38]} 9. dxc5 {[%clk 0:02:55]}  Bxc5 {[%clk 0:02:38]} 10. b4 {[%clk 0:02:54]}  Be7 {[%clk 0:02:36]} 11. Bb2 {[%clk 0:02:54]}  Be6 {[%clk 0:02:36]} 12. Nd4 {[%clk 0:02:33]}  Nxd4 {[%clk 0:02:30]} 13. Qxd4 {[%clk 0:02:34]}  a6 {[%clk 0:02:21]} 14. Nd2 {[%clk 0:02:28]}  Rc8 {[%clk 0:02:18]} 15. Rfc1 {[%clk 0:02:23]}  Qd7 {[%clk 0:02:17]} 16. Nf3 {[%clk 0:02:20]}  h6 {[%clk 0:02:11]} 17. Ne5 {[%clk 0:02:20]}  Qb5 {[%clk 0:02:07]} 18. Nd3 {[%clk 0:02:16]}  Rc4 {[%clk 0:01:45]} 19. Rxc4 {[%clk 0:02:12]}  dxc4 {[%clk 0:01:44]} 20. Nf4 {[%clk 0:02:10]}  Rd8 {[%clk 0:01:39]} 21. Qc3 {[%clk 0:02:10]}  Bf5 {[%clk 0:01:22]} 22. Rc1 {[%clk 0:02:09]}  Bf8 {[%clk 0:01:22]} 23. Qxc4 {[%clk 0:01:13]}  Rd1+ {[%clk 0:01:14]} 24. Bf1 {[%clk 0:01:13]}  Qxc4 {[%clk 0:01:14]} 25. Rxc4 {[%clk 0:01:14]}  Bd6 {[%clk 0:01:04]} 26. Rc1 {[%clk 0:01:03]}  Rd2 {[%clk 0:00:58]} 27. Bxf6 {[%clk 0:00:56]}  gxf6 {[%clk 0:00:59]} 28. e3 {[%clk 0:00:48]}  Ra2 {[%clk 0:00:54]} 29. Bg2 {[%clk 0:00:40]}  Rxa3 {[%clk 0:00:53]} 30. Bxb7 {[%clk 0:00:38]}  Bxb4 {[%clk 0:00:53]} 31. Nd5 {[%clk 0:00:38]}  Bd2 {[%clk 0:00:48]} 32. Rd1 {[%clk 0:00:30]}  Ra2 {[%clk 0:00:43]} 33. Ne7+ {[%clk 0:00:30]}  Kh7 {[%clk 0:00:38]} 34. Nxf5 {[%clk 0:00:31]}  a5 {[%clk 0:00:38]} 35. Be4 {[%clk 0:00:30]}  h5 {[%clk 0:00:36]} 36. Bd5 {[%clk 0:00:27]}  Rb2 {[%clk 0:00:35]} 37. Bxf7 {[%clk 0:00:26]}  a4 {[%clk 0:00:32]} 38. Ra1 {[%clk 0:00:24]} 1-0


[Site "https://www.chess.com"]